Cogmind - Beta 14 @@@ ROGUE MODE // 2024.09.30 @ 00:12:00 Player: BionicBot Result: Destroyed by S-10 Pest with Light Assault Rifle Performance ------------- Evolutions (0) 0 Regions Visited (2) 400 Robots Destroyed (33) 165 Value Destroyed (497) 497 Prototype IDs (6) 120 Alien Tech Used (0) 0 Bonus (0) 0 TOTAL SCORE: 1182 Bonus ------- None Cogmind --------- Core Integrity 0/250 Matter 300/300 Energy 125/125 System Corruption 3% Temperature Cool (0) Movement Treading (240) Ox1 Location -10/Mines Parts ------- > --- POWER (1) -------- Light Ion Engine > --- PROPULSION (2) --- Light Treads Light Treads > --- UTILITY (2) ------ High-capacity Storage Unit > --- WEAPON (2) ------- Mace > --- INVENTORY (20) --- Light Treads Light Treads Armored Wheel Improved Terrain Scanner Salvage Targeting Computer Decoy Drone Bay (0/16) Peak State ------------ > --- POWER ------------ (None) > --- PROPULSION ------- Light Treads Light Treads > --- UTILITY ---------- Decoy Drone Bay > --- WEAPON ----------- Mace > --- INVENTORY -------- Armored Wheel Salvage Targeting Computer [Rating: 18] Favorites ----------- Power Ion Engine Engine Ion Engine Power Core Light Nuclear Core Propulsion Light Treads Treads Light Treads Wheel Armored Wheel Utility Seismic Detector Device Seismic Detector Storage High-capacity Storage Unit Weapon Assault Rifle Energy Gun Medium Laser Ballistic Gun Assault Rifle Launcher Grenade Launcher Impact Weapon Mace Build | -11 -10 -10 ------- Run | Yrd Mat Min Slots Evolved . | . . . Power . | . . . Propulsion . | . . . Utility . | . . . Weapon . | . . . Parts Attached 26 | 8 7 11 Power 3 | 1 1 1 Engine 2 | 1 . 1 Core 1 | . 1 . Reactor . | . . . Propulsion 6 | 2 2 2 Treads 4 | 2 . 2 Leg . | . . . Wheel 2 | . 2 . Hover . | . . . Flight . | . . . Utility 7 | 2 2 3 Device 4 | 1 1 2 Storage 3 | 1 1 1 Processor . | . . . Hackware . | . . . Protection . | . . . Artifact . | . . . Weapon 10 | 3 2 5 Energy Gun 3 | 2 . 1 Energy Cannon . | . . . Ballistic Gun 5 | 1 2 2 Ballistic Cannon . | . . . Launcher 1 | . . 1 Special Weapon . | . . . Impact Weapon 1 | . . 1 Slashing Weapon . | . . . Piercing Weapon . | . . . Special Melee Weapon . | . . . Unidentified Prototypes 1 | . . 1 Parts Lost 10 | . 1 9 Power 2 | . 1 1 Propulsion 2 | . . 2 Utility 1 | . . 1 Weapon 5 | . . 5 Highest Loss Streak 9 | . 1 9 To Critical Strikes . | . . . Average Slot Usage (%) 89 | . 99 68 Engine 9 | . 11 4 Core 2 | . 2 2 Treads 24 | . 26 21 Wheel 2 | . 1 5 Device 11 | . 14 5 Storage 13 | . 14 11 Ballistic Gun 19 | . 27 5 Impact Weapon 3 | . . 10 Peak Build Rating 18 | 7 13 18 Average Rating 9 | 5 8 10 On Entrance 6 | . 7 13 Naked Turns . | . . . Heaviest Build 51 | 14 50 51 Greatest Support 40 | 40 40 40 Greatest Overweight (x) 4 | . 4 2 Average Overweight (x) . | . . 1 Largest Inventory Capacity 20 | 8 20 20 Average Capacity 15 | 7 15 16 Most Carried 20 | 3 19 20 Average Carried 9 | 1 10 8 Final Capacity 20 | 8 20 20 Final Carried 19 | 3 19 7 Class Distribution -------------------- 100% | Mutant Dominant Class ---------------- Mutant | -10/Materials Mutant | -10/Mines Resources | -11 -10 -10 ----------- Run | Yrd Mat Min Matter Collected 1169 | 230 681 258 Remotely . | . . . Salvage Created 971 | 91 778 102 Parts 75 | 8 63 4 Haulers Intercepted 2 | . 2 . Recyclers Shooed 5 | 1 4 . Parts Field Recycled . | . . . Retrieved Matter . | . . . Parts Self-Destructed . | . . . Prevented . | . . . Kills | -11 -10 -10 ------- Run | Yrd Mat Min Combat Hostiles Destroyed 37 | . 17 20 Melee 4 | . . 4 Guns 18 | . 17 1 AOE 14 | . . 14 Classes Destroyed 10 | 2 7 1 Worker 3 | . 2 1 Builder 1 | . 1 . Tunneler 2 | 1 1 . Hauler 2 | . 2 . Recycler 2 | 1 1 . Operator 1 | . 1 . Watcher 3 | . 3 . Swarmer 11 | . 9 2 Grunt 8 | . 8 . Assembled 18 | . . 18 Best Kill Streak 15 | 2 3 15 Combat Bots Only 15 | . 3 15 Max Kills in Single Turn 2 | 1 1 2 Gunslinging . | . . . Exploded 2 | . . 2 Melee 1 | . . 1 Uniques/NPCs Destroyed . | . . . Combat | -11 -10 -10 -------- Run | Yrd Mat Min Hostile Shots Fired 133 | . 74 59 Missed 34 | . 16 18 Damage Taken 1439 | . 568 871 Core 254 | . 74 180 Absorbed by Shields . | . . . Core Remaining (%) 100 | 100 . . Volleys Fired 100 | 7 73 20 Largest 2 | 2 2 2 Hottest 70 | 70 40 70 Shots Fired 188 | 14 146 28 Gun 175 | 14 146 15 Cannon . | . . . Launcher 13 | . . 13 Special . | . . . Kinetic 163 | 7 146 10 Thermal 12 | 7 . 5 Explosive 13 | . . 13 Electromagnetic . | . . . Robot Hit Streak 7 | 4 7 4 Robot Miss Streak 6 | 1 6 3 Penetration Max . | . . . Secondary Targets 2 | . 2 . Max Gunslinging Chain 1 | . 1 . Shots Hit Robots 109 | 8 77 24 Core Hits 80 | 4 40 36 Critical Kills 2 | . . 2 Critical Parts Destroyed 2 | . 1 1 Critical Strikes 4 | . 1 3 Destroy 1 | . 1 . Smash 3 | . . 3 Melee Attacks 15 | . . 15 Impact 15 | . . 15 Slashing . | . . . Piercing . | . . . Sneak Attacks 1 | . . 1 Combat Hostiles . | . . . Follow-up Attacks . | . . . Damage Inflicted 2478 | 73 990 1415 Guns 1133 | 73 990 70 Cannons . | . . . Explosions 1018 | . . 1018 Melee 327 | . . 327 Ramming . | . . . Kinetic 1097 | 49 990 58 Thermal 36 | 24 . 12 Explosive 1018 | . . 1018 Electromagnetic . | . . . Impact 327 | . . 327 Slashing . | . . . Piercing . | . . . Highest Corruption 3 | . 1 3 Average Corruption 1 | . 1 2 Corruption Purged . | . . . Corruption Blocked . | . . . Effects 27 | . 13 14 Message Errors 7 | . 4 3 Matter Fused 9 | . 5 4 Heat Flow Errors 5 | . 1 4 Energy Discharges 2 | . 1 1 Data Loss (minor) 3 | . 2 1 Misfires 1 | . . 1 Overload Shots . | . . . Overflow Damage 75 | . . 75 Projectiles . | . . . Explosions 40 | . . 40 Melee 35 | . . 35 Knockbacks 1 | . . 1 Impact 1 | . . 1 Kinetic . | . . . Secondary . | . . . Self-Inflicted Damage 149 | . . 149 Shots 6 | . . 6 Rammed 1 | 1 . . Targets Rammed 1 | 1 . . Kicked . | . . . Crushed . | . . . Highest Temperature 266 | 110 224 266 Average Temperature 75 | 58 89 79 Received Heat Transfer 156 | . 156 . Siege Activations . | . . . Robots Corrupted 1 | . . 1 Combat Hostiles 1 | . . 1 Parts Fried . | . . . Impact Corruptions 2 | . . 2 Robots Melted . | . . . Combat Hostiles . | . . . Parts Melted . | . . . Heat Transferred 111 | 74 . 37 Parts Sabotaged . | . . . Parts Stolen . | . . . Parts Stripped . | . . . Power Chain Reactions . | . . . Alert | -11 -10 -10 ------- Run | Yrd Mat Min Peak Influence 217 | 10 217 47 Initial 6 | . 6 . Average 57 | 5 88 2 Maximum Alert Level 1 | . 1 . Low Security (%) 99 | 100 98 100 Level 1 . | . 1 . Level 2 . | . . . Level 3 . | . . . Level 4 . | . . . Level 5 . | . . . High Security . | . . . Max Security . | . . . Squads Dispatched 4 | . 4 . Investigation 2 | . 2 . Extermination . | . . . Reinforcement 2 | . 2 . Assault . | . . . Garrison . | . . . Intercept . | . . . Searches Triggered . | . . . Construction Impeded . | . . . Haulers Reinforced . | . . . Active Scanning Responses . | . . . Cargo Convoy Interrupts . | . . . Stealth | -11 -10 -10 --------- Run | Yrd Mat Min Distress Signals 2 | . 2 . Communications Jammed . | . . . Distress Signals . | . . . Times Spotted 54 | . 27 27 Peak Tracking Total 10 | . 3 10 Tactical Retreats 2 | . 2 . Traps | -11 -10 -10 ------- Run | Yrd Mat Min Traps Triggered 2 | . 2 . Indirectly . | . . . Trap Hack Attempts . | . . . Triggered . | . . . Disarmed . | . . . Reprogrammed . | . . . Reused . | . . . Traps Extracted . | . . . Installed . | . . . Triggered . | . . . Machines | -11 -10 -10 ---------- Run | Yrd Mat Min Machines Disabled . | . . . Max in Single Turn . | . . . Machines Repaired . | . . . Machines Dismantled . | . . . Machines Sabotaged . | . . . Overloaded Fab Kills . | . . . Hacking | -11 -10 -10 --------- Run | Yrd Mat Min Machines Accessed 6 | . 5 1 Terminals 5 | . 5 . Fabricators . | . . . Repair Stations . | . . . Recycling Units . | . . . Scanalyzers . | . . . Garrison Access . | . . . Total Hacks 22 | . 21 1 Successful 12 | . 11 1 Failed 10 | . 10 . Catastrophic . | . . . Database Lockouts . | . . . Manual 9 | . 9 . Terminals 21 | . 21 . Fabricators . | . . . Repair Stations . | . . . Recycling Units . | . . . Scanalyzers . | . . . Garrison Access . | . . . Terminal Hacks 8 | . 7 1 Prototype ID Bank 3 | . 3 . Open Door 1 | . . 1 Emergency Access Points 1 | . 1 . Unreport Threat 2 | . 2 . Locate Traps 1 | . 1 . Fabricator Hacks . | . . . Repair Station Hacks . | . . . Recycling Unit Hacks . | . . . Scanalyzer . | . . . Garrison Access Hacks . | . . . Unauthorized Hacks 4 | . 4 . Terminals 4 | . 4 . Assimilate 1 | . 1 . Botnet 3 | . 3 . Fabricators . | . . . Repair Stations . | . . . Recycling Units . | . . . Scanalyzers . | . . . Garrison Access . | . . . Data Cores Recovered . | . . . Used . | . . . Hacking Detections 5 | . 5 . Full Trace Events 1 | . 1 . Feedback Events . | . . . Feedback Blocked . | . . . Robot Schematics Acquired . | . . . Robots Built . | . . . Authchips . | . . . Time . | . . . Total Robot Build Rating . | . . . Part Schematics Acquired . | . . . Parts Built . | . . . Authchips . | . . . Time . | . . . Total Part Build Rating . | . . . Parts Repaired . | . . . Time . | . . . Parts Recycled . | . . . Recycled Matter . | . . . Retrieved Matter . | . . . Retrieved Components . | . . . Parts Scanalyzed . | . . . Part Schematics Acquired . | . . . Parts Damaged . | . . . Bothacking | -11 -10 -10 ------------ Run | Yrd Mat Min Used RIF Installer . | . . . Robots Hacked . | . . . Non-combat . | . . . Combat . | . . . Robot Hacks Applied . | . . . Relay Couplers Released . | . . . Fabnet Peak Effective % . | . . . Robots Rewired . | . . . Allies Hacked . | . . . Hacks Repelled . | . . . Allies | -11 -10 -10 -------- Run | Yrd Mat Min Total Allies . | . . . Largest Group . | . . . Highest-Rated Group . | . . . Highest-Rated Ally . | . . . Total Orders . | . . . Ally Attacks . | . . . Total Damage . | . . . Kills . | . . . Allies Corrupted 1 | . . 1 Allies Melted . | . . . Intel | -11 -10 -10 ------- Run | Yrd Mat Min Robot Analysis Total . | . . . Derelict Logs Recovered 1 | . . 1 Drone Launches 16 | . . 16 Drone Recoveries . | . . . Exploration | -11 -10 -10 ------------- Run | Yrd Mat Min Turns Passed 2533 | 107 1617 809 Spaces Moved 1100 | 49 681 370 Core 6 | 6 . . Treads 946 | 43 633 270 Legs . | . . . Wheels 148 | . 48 100 Hover . | . . . Flight . | . . . Fastest Speed 50 | 50 120 120 Average Speed 193 | 146 199 187 Slowest Speed 240 | 160 240 240 Overloaded Moves . | . . . Propulsion Burnouts . | . . . Robots Hopped . | . . . Cave-ins Triggered . | . . . Exploration Rate (%) 64 | 5 95 92 Regions Visited 2 Branch Regions 1 Pre-discovered Areas . | . . . Known Exits Taken . | . . . Unknown Exits Taken 2 | 1 1 . Scrap Searched . | . . . Spaces Dug . | . . . Terrain Destroyed 91 | . . 91 Melee . | . . . Projectile . | . . . AOE 91 | . . 91 Terrain Rammed . | . . . Walls Destroyed . | . . . Machines Disabled . | . . . Actions | -11 -10 -10 --------- Run | Yrd Mat Min Total 1295 | 67 795 433 Wait 22 | . 14 8 Move 1099 | 49 680 370 Hop . | . . . Pick Up 21 | 3 14 4 Fast Attach 14 | 7 4 3 Attach 8 | . 1 7 Detach 6 | . 4 2 Swap 4 | 1 2 1 Drop 6 | . 3 3 Fire 100 | 7 73 20 Melee 15 | . . 15 Ram . | . . . Kick . | . . . Crush . | . . . Escape Stasis . | . . . Rewire . | . . . Trap . | . . . Miscellaneous . | . . . Route ------- -11/Scrapyard -10/Materials (discovered 4 exits: [*Mat x3] / *Min) -10/Mines (discovered 2 exits: [*Mat x2]) History --------- Turn | Location | Event 18 | -11/Scrapyard | Discovered new exit (range 16) 108 | -11/Scrapyard | Entered Materials 248 | -10/Materials | Discovered new exit (range 3) 307 | -10/Materials | Build established: Mutant 493 | -10/Materials | Discovered new exit (range 5) 1315 | -10/Materials | Discovered new exit (range 6) 1689 | -10/Materials | Discovered new exit (range 6) 1725 | -10/Materials | Entered Mines 1729 | -10/Mines | Discovered new exit (range 14) 1748 | -10/Mines | Found the Drone Emporium 1756 | -10/Mines | Found Prototype Device 1784 | -10/Mines | Discovered new exit (range 7) 1828 | -10/Mines | Assembled infested the area 1837 | -10/Mines | Learned location of 1 exit from Materials 1889 | -10/Mines | Core integrity fell below 50% 1899 | -10/Mines | Core integrity fell below 20% 1905 | -10/Mines | Identified Decoy Drone Bay 1916 | -10/Mines | Destroyed 15 combat bots 1933 | -10/Mines | Lost 9 parts (1p2n1u5w) 2474 | -10/Mines | Found a hidden stash of uninstalled traps 2534 | -10/Mines | Destroyed by S-10 Pest with Light Assault Rifle Last Messages --------------- 02256_ The unstable cave ceiling collapses. 02272_ K75OQ/FLJAK767MJ KI=FG6RV 02283_ Acquired Lgt. Ion Engine. 02310_ System corrupted: Energy discharge (-47). 02319_ The unstable cave ceiling collapses. 02342_ System corrupted: Matter fused (-8). 02375_ System corrupted: Matter fused (-10). 02380_ Acquired 7 matter. 02399_ System corrupted: Heat flow error (+171). 02402_ Acquired 10 matter. 02409_ K-01 Serf collects debris. 02474_ A stash of uninstalled traps is collected here! 02498_ Acquired 4 matter. 02525_ System corrupted: Component data lost. 02530_ Destroyed Flight Unit. 02530_ S-10 Pest system corrupted by crushing effect. 02530_ S-10 Pest misfires. 02531_ S-10 Pest system terminally corrupted. 02533_ S-10 Pest suffers critical hit (Smash). 02533_ S-10 Pest destroyed. Map ----- +----------------------------------------------------+ | ??????? ?????????? | | ???????? ??????????? | | ?????????# ??????????? | | ??????????# #??????????? | | ??????????# ###????????? | | ???????????# #####????? | | ???????????# %##???? | | ????????????# ##??? | | ????????????## % #??? | | ?????????????### = ######??? | | ??????????????# * #???????? | | ?#####??????#### | ###???????? | | ## ##?????# ?????????? | | # ##????# ## ###????????? | | ###### ### ##??????????? | | % #???????????? | | #???????????? | | #############???????????? | | ###???????????????????????? | | ##?????????????????????????? | | #??????????????????????????? | | ##??????????????????????????? | | ###????????????? "????????????? | | #??????????????# """ ######??? | | ???????????????# """ =s% #??? | | ?????????####??# ###@ #??? | | ???????### &##?# ??????# %#??? | | ??????## &&& #?????????##% #??? | | ??????# #??????#### % ##?? | | ??????## ##???### #?? | | ####???# # ##?## #?? | | #???# ## ### % %##?? | | #???# ### % ##??? | | # #???# #?### ### ##???? | | # ##### #???## ##?#####????? | | # # ##?######???????????? | | % * ### # #???????????? | | = #???????????? | | ## #???????????? | | ##### ##??????????? | | ##% ##?# ##?????????? | | ## ## # #?????????? | | ?## % #?????????? | | ?# ## ##?????????? | | ?### #??# #??????????? | | ???#### # # #??????????? | | ??????### ## ##??????????? | | ####???# ### # #???????????? | | # ##??# ### ## #???????????? | | ##### # # ######??????? | +----------------------------------------------------+ Best States ------------- Heat Dissipation 25 Energy Generation 14 Energy Capacity 250 Matter Stores 300 Matter Capacity 300 Sight Range 16 Terrain Scan Density 10 Evasion (%) 40 Recoil Reduction 2 Item Schematics ----------------- None Robot Schematics ------------------ None Fabricated ------------ Nothing Alien Tech Used ----------------- None Achievements -------------- Exterminator Release The Drones! Challenges ------------ None Game ------ Seed ArmorFrostDesublimator Manual? 0 Play Time 00:18:01 Cumulative 187.3 hours Start 2024.09.29 @ 23:52:04 End 2024.09.30 @ 00:12:00 Sessions 1 Manual Loads 0 Difficulty Rogue Special Mode None Game No. 146 Rogue 146 Adventurer 0 Explorer 0 Win Type - Total 8 Types 7/0/1/0/0/0/0/0/0 Lore% 49 Gallery% 60 Achievement% 58 Wizard Run 0 Options --------- Layout 0 ASCII 0 Keyboard 1 Movement Numpad Keybinds 0 Fullscreen 2 Font 18/X11 Map View 76x50 Zoom Use 0% Tactical HUD 1 Map Filters NONE Filters NONE Steam 1 RUN: a8988372-1777-42d1-b812-0124019573ac